fUST/lending_fUST_20240927
["ID","MTS","AMOUNT","RATE_DAILY","PERIOD"]
[339250976,1727401844530,-5494.28783265,0.0001998,3]
[339250977,1727401844540,-45679.86943086,0.0001999,2]
[339250985,1727401845909,-500.0,0.00019178,2]
[339250986,1727401845919,-500.0,0.00019178,2]
[339250987,1727401845929,-581.01436099,0.00019178,2]
[339250988,1727401845940,-500.0,0.00019178,2]
[339250989,1727401845950,-71250.03359388,0.0001999,2]
[339250991,1727401900847,-500.0,0.00019157,2]
[339250992,1727401900875,-164.00063556,0.00019157,2]
[339250993,1727401900897,-500.0,0.00019178,2]
[339250994,1727401900922,-514.30157355,0.00019178,2]
[339250995,1727401900946,-500.0,0.00019178,2]
[339250996,1727401900970,-617.88979273,0.00019178,2]
[339250997,1727401900995,-258.13804015,0.00019178,2]
[339250998,1727401901019,-527.97218389,0.00019178,2]
[339250999,1727401901042,-435.88524912,0.00019178,2]
[339251000,1727401901067,-509.11195022,0.00019178,2]
[339251001,1727401901090,-500.0,0.00019178,2]
[339251002,1727401901113,-500.0,0.00019178,2]
[339251003,1727401901136,-500.0,0.00019178,2]
[339251004,1727401901160,-300.0,0.00019451,2]
[339251005,1727401901185,-300.0,0.00019451,2]
[339251006,1727401901209,-500.0,0.00019452,2]
[339251007,1727401901236,-639.68371293,0.00019452,2]
[339251008,1727401901260,-477.47399206,0.00019452,2]
[339251009,1727401901283,-500.0,0.00019452,2]
[339251010,1727401901307,-500.0,0.00019452,2]
[339251011,1727401901333,-500.0,0.00019726,2]
[339251012,1727401901356,-500.0,0.00019726,2]
[339251013,1727401901381,-500.0,0.00019973,2]
[339251014,1727401901407,-500.0,0.00019973,2]
[339251015,1727401901433,-17632.70971322,0.0001999,2]
[339251016,1727401901460,-157.594151,0.0001999,2]
[339251017,1727401901487,-157.594151,0.0001999,2]
[339251018,1727401901511,-151.0,0.0001999,2]
[339251019,1727401901538,-151.0,0.0001999,2]
[339251020,1727401901690,-151.0,0.0001999,2]
[339251021,1727401901719,-287.934144,0.0001999,2]
[339251022,1727401901745,-5494.28783265,0.0001999,3]
[339251023,1727401901769,-180.503988,0.0001999,2]
[339251024,1727401901793,-151.0,0.0001999,2]
[339251025,1727401901819,-209.255748,0.0001999,2]
[339251026,1727401901841,-209.255748,0.0001999,2]
[339251027,1727401901864,-151.0,0.0001999,2]
[339251028,1727401901887,-151.271822,0.0001999,2]
[339251029,1727401901911,-231.066825,0.0001999,2]
[339251030,1727401901935,-231.066825,0.0001999,2]
[339251031,1727401901960,-151.0,0.0001999,2]
[339251032,1727401901984,-151.0,0.0001999,2]
[339251033,1727401902008,-151.0,0.0001999,2]
[339251034,1727401902034,-151.0,0.0001999,2]
[339251035,1727401902058,-246.511555,0.0001999,2]
[339251036,1727401902080,-246.511555,0.0001999,2]
[339251037,1727401902103,-275.44,0.0002,7]
[339251038,1727401902124,-11458.18583688,0.0002,2]
[339251039,1727401902147,-47886.45797307,0.0002,2]
[339251040,1727401902173,-10000.0,0.0002,2]
[339251041,1727401902196,-318.94273036,0.0002,2]
[339251042,1727401902220,-24139.28360753,0.0002,15]
[339251043,1727401902243,-5183.4993481,0.0002,2]
[339251044,1727401902267,-500.0,0.0002,2]
[339251045,1727401902289,-151.0,0.0002,2]
[339251046,1727401902311,-500.0,0.0002,2]
[339251047,1727401902334,-500.0,0.0002,2]
[339251048,1727401902359,-500.0,0.0002,2]
[339251049,1727401902381,-153.658606,0.0002,2]
[339251050,1727401902405,-708.13,0.0002,2]
[339251051,1727401902429,-153.804466,0.0002,2]
[339251052,1727401902452,-391.54485367,0.0002,2]
[339251053,1727401902476,-1305.2,0.0002,2]
[339251054,1727401902501,-1454.74,0.0002,2]
[339251055,1727401902524,-151.0,0.0002,2]
[339251056,1727401902550,-2210.52,0.0002,2]
[339251057,1727401902572,-151.0,0.0002,2]
[339251058,1727401902596,-500.0,0.0002,2]
[339251059,1727401902620,-701.96,0.0002,2]
[339251060,1727401902644,-2000.0,0.0002,2]
[339251061,1727401902671,-1329.1,0.0002,2]
[339251062,1727401902693,-500.0,0.0002,2]
[339251063,1727401902715,-500.0,0.0002,2]
[339251064,1727401902737,-500.0,0.0002,2]
[339251065,1727401902758,-452.24495729,0.0002,2]
[339251066,1727401902780,-1000.0,0.0002,2]
[339251067,1727401902801,-500.0,0.0002,2]
[339251068,1727401902823,-500.0,0.0002,2]
[339251069,1727401902847,-230.25,0.0002,2]
[339251070,1727401902868,-253.32000771,0.0002,2]
[339251071,1727401902891,-492.99966962,0.0002,2]
[339251072,1727401902918,-621.47,0.0002,2]
[339251073,1727401902940,-151.0,0.0002,2]
[339251074,1727401902962,-2425.98,0.0002,2]
[339251075,1727401902983,-506.6,0.0002,2]
[339251076,1727401903005,-500.0,0.0002,2]
[339251077,1727401903029,-151.0,0.0002,2]
[339251078,1727401903052,-500.0,0.0002,2]
[339251079,1727401903076,-264.36223126,0.0002,2]
[339251080,1727401903098,-151.0,0.0002,2]
[339251081,1727401903120,-500.0,0.0002,2]
[339251082,1727401903143,-211.443947,0.0002,2]
[339251083,1727401903170,-151.0,0.0002,2]
[339251084,1727401903192,-211.443947,0.0002,2]
[339251085,1727401903216,-500.0,0.0002,2]
[339251086,1727401903240,-151.0,0.0002,2]
[339251087,1727401903266,-500.0,0.0002,2]
[339251088,1727401903290,-500.0,0.0002,2]
[339251089,1727401903313,-606.84,0.0002,2]
[339251090,1727401903337,-158.1576386,0.0002,2]
[339251091,1727401903362,-566.36907871,0.0002,2]
[339251092,1727401903387,-22134.76,0.0002,2]
[339251093,1727401903413,-500.0,0.0002,2]
[339251094,1727401903439,-500.0,0.0002,2]
[339251095,1727401903463,-4277.25,0.0002,2]
[339251096,1727401903487,-316.92753935,0.0002,2]
[339251097,1727401903510,-500.0,0.0002,2]
[339251098,1727401903630,331.82,0.00019178,2]
[339251099,1727401904249,153.0,0.0002,2]
[339251100,1727401907209,500.0,0.00019178,2]
[339251101,1727401907540,500.0,0.00019452,2]
[339251102,1727401907968,500.0,0.00019726,2]
[339251103,1727401908317,500.0,0.0002,2]
[339251104,1727401909125,507.44277202,0.00019178,2]
[339251105,1727401909476,201.62240888,0.00019178,2]
[339251106,1727401913749,507.24361796,0.00019178,2]
[339251107,1727401918370,500.0,0.00019178,2]
[339251108,1727401918826,519.414661,0.00019452,2]
[339251109,1727401919642,500.0,0.00019178,2]
[339251110,1727401919879,197.94123061,0.00019452,2]
[339251111,1727401924786,4337.89429002,0.00019078,2]
[339251112,1727401932228,500.0,0.00019178,2]
[339251113,1727401932519,500.0,0.00019452,2]
[339251114,1727401932837,616.28332887,0.00019726,2]
[339251115,1727401932936,500.0,0.00019178,2]
[339251116,1727401933404,500.0,0.00019452,2]
[339251117,1727401951796,500.0,0.00019178,2]
[339251118,1727401951948,296.1902014,0.00019157,2]
[339251119,1727401952692,537.68111558,0.00019178,2]
[339251120,1727401963823,500.0,0.00018154,2]
[339251121,1727401964431,529.13432213,0.00019178,2]
[339251122,1727401964504,532.47098281,0.00019178,2]
[339251123,1727401966064,526.58583039,0.00019178,2]
[339251124,1727401968768,500.0,0.00019178,2]
[339251125,1727401968925,523.43163657,0.00019178,2]
[339251126,1727401972598,500.0,0.00019178,2]
[339251127,1727401972943,348.09053739,0.00019452,2]
[339251128,1727401976580,555.70432589,0.00019178,2]
[339251129,1727401978408,289.87317875,0.00019178,2]
[339251130,1727401980982,500.0,0.00019178,2]
[339251131,1727401981242,500.0,0.00019452,2]
[339251132,1727401984742,592.62274583,0.00019178,2]
[339251133,1727401986306,1842.1,0.00019178,2]
[339251134,1727401986620,1842.1,0.00019452,2]
[339251135,1727401986968,1842.1,0.00019726,2]
[339251136,1727401987291,1842.1,0.0002,2]
[339251137,1727401987319,500.0,0.00019178,2]
[339251138,1727401987622,168.77931075,0.00019452,2]
[339251139,1727401993964,1254.2004201,0.00019254,2]
[339251140,1727401997966,523.40797736,0.00019178,2]
[339251141,1727402001632,500.0,0.00019178,2]
[339251142,1727402006518,500.0,0.00019178,2]
[339251143,1727402006703,500.0,0.00019178,2]
[339251144,1727402006827,183.93923238,0.00019452,2]
[339251145,1727402007014,500.0,0.00019178,2]
[339251146,1727402007085,500.0,0.00019452,2]
[339251147,1727402007335,218.25454619,0.00019452,2]
[339251148,1727402007441,500.0,0.00019726,2]
[339251149,1727402008151,500.0,0.0002,2]
[339251150,1727402022097,510.63771422,0.00019178,2]
[339251151,1727402025480,535.39045856,0.00019178,2]
[339251152,1727402034153,500.0,0.00019178,2]
[339251153,1727402034444,500.0,0.00019452,2]
[339251154,1727402034732,413.15937659,0.00019726,2]
[339251155,1727402041403,500.0,0.00019178,2]
[339251156,1727402041795,172.43901248,0.00019452,2]
[339251157,1727402056359,500.0,0.00019178,2]
[339251158,1727402056681,163.47020694,0.00019178,2]
[339251159,1727402056898,500.0,0.00019178,2]
[339251160,1727402063797,19317.79,0.00019178,2]
[339251161,1727402064124,19317.79,0.00019452,2]
[339251162,1727402064415,19317.79,0.00019726,2]
[339251163,1727402064746,10782.1969321,0.0002,2]
[339251167,1727402485131,169.52829583,0.00021,60]
[339251168,1727402552602,150.0,0.00021,60]
[339251169,1727402831146,-392.86795189,0.00018603,2]
[339251172,1727402850163,-3710.95898522,0.00018603,2]
[339251173,1727402852112,-981.05431716,0.00018603,2]
[339251174,1727402852136,-163.605249,0.00018703,2]
[339251175,1727402852159,-2500.0,0.00019077,2]
[339251176,1727402852181,-159.09586362,0.00019078,2]
[339251177,1727402852206,-579.62,0.00019168,3]
[339251178,1727402852389,-246.29641855,0.00019172,2]
[339251190,1727402962202,156.16,0.00014111,2]
[339251191,1727402974249,-500.0,0.00018154,2]
[339251192,1727402974280,-163.605249,0.00018312,2]
[339251195,1727402989140,1154.09406794,0.00015,2]
[339251196,1727402989369,1726.39923829,0.00015,2]
[339251197,1727402989391,1632.9834328,0.00015,2]
[339251198,1727402989413,1745.73943264,0.00015,2]
[339251199,1727402989437,1772.57246763,0.00015,2]
[339251200,1727402989459,1789.20583272,0.00015,2]
[339251201,1727402989480,1756.63330822,0.00015,2]
[339251202,1727402989508,1672.36563158,0.00015,2]
[339251371,1727403038760,-300.0,0.00014999,2]
[339251372,1727403038770,-300.0,0.00014999,2]
[339251373,1727403038779,-20630.08911318,0.00015,2]
[339251374,1727403038789,-420.0,0.00016416,2]
[339251375,1727403038799,-420.0,0.00016499,2]
[339251376,1727403038807,-587.0,0.00017966,2]
[339251377,1727403038817,-587.0,0.00018149,2]
[339251378,1727403038827,-500.0,0.00019167,2]
[339251379,1727403038837,-155.70307901,0.00019167,2]
[339251380,1727403038846,-161.76320495,0.00019167,2]
[339251381,1727403038855,-443.86530881,0.00019167,2]
[339251382,1727403038866,-500.0,0.00019167,2]
[339251383,1727403038875,-2240.51650008,0.00019168,3]
[339251384,1727403038887,-24815.51929222,0.00019168,3]
[339251385,1727403038896,-44818.7279584,0.00019168,3]
[339251386,1727403038908,-183.40229051,0.00019173,2]
[339251387,1727403038918,-329.39147508,0.00019173,2]
[339251388,1727403038930,-500.0,0.00019173,2]
[339251389,1727403038941,-518.39655882,0.00019173,2]
[339251390,1727403038953,-500.0,0.00019173,2]
[339251391,1727403038963,-500.0,0.00019173,2]
[339251392,1727403038973,-500.0,0.00019173,2]
[339251393,1727403038986,-500.0,0.00019178,2]
[339251394,1727403038996,-504.92250013,0.00019178,2]
[339251395,1727403039005,-500.0,0.00019178,2]
[339251396,1727403039015,-500.0,0.00019178,2]
[339251397,1727403039024,-640.84628451,0.00019178,2]
[339251398,1727403039034,-500.0,0.00019178,2]
[339251399,1727403039043,-508.17203683,0.00019178,2]
[339251400,1727403039054,-510.55708519,0.00019178,2]
[339251401,1727403039063,-511.77962822,0.00019178,2]
[339251402,1727403039073,-500.0,0.00019178,2]
[339251403,1727403039083,-500.0,0.00019178,2]
[339251404,1727403039092,-618.54,0.00019178,2]
[339251405,1727403039102,-502.37530805,0.00019178,2]
[339251406,1727403039112,-507.07870571,0.00019178,2]
[339251407,1727403039123,-506.78731645,0.00019178,2]
[339251408,1727403039133,-500.0,0.00019178,2]
[339251409,1727403039144,-1127.56,0.00019178,2]
[339251410,1727403039155,-500.0,0.00019178,2]
[339251411,1727403039165,-500.0,0.00019178,2]
[339251412,1727403039174,-1317.33,0.00019178,2]
[339251413,1727403039183,-537.37373621,0.00019178,2]
[339251414,1727403039193,-407.57807079,0.00019178,2]
[339251415,1727403039202,-605.87,0.00019178,2]
[339251416,1727403039211,-500.0,0.00019178,2]
[339251417,1727403039222,-500.0,0.00019178,2]
[339251418,1727403039231,-500.0,0.00019178,2]
[339251419,1727403039240,-500.0,0.00019178,2]
[339251420,1727403039250,-500.0,0.00019178,2]
[339251421,1727403039259,-1146.39,0.00019178,2]
[339251422,1727403039269,-503.05146831,0.00019178,2]
[339251423,1727403039279,-500.0,0.00019178,2]
[339251424,1727403039289,-503.06558109,0.00019178,2]
[339251425,1727403039299,-502.20995455,0.00019178,2]
[339251426,1727403039308,-500.0,0.00019178,2]
[339251427,1727403039319,-500.0,0.00019178,2]
[339251428,1727403039330,-504.21961253,0.00019178,2]
[339251429,1727403039339,-504.1519355,0.00019178,2]
[339251430,1727403039348,-514.45971434,0.00019178,2]
[339251431,1727403039358,-507.16289939,0.00019178,2]
[339251432,1727403039368,-500.0,0.00019178,2]
[339251433,1727403039377,-514.90413926,0.00019178,2]
[339251434,1727403039387,-500.0,0.00019178,2]
[339251435,1727403039396,-502.25984601,0.00019178,2]
[339251436,1727403039406,-500.0,0.00019178,2]
[339251437,1727403039417,-263.37469876,0.00019178,2]
[339251438,1727403039428,-500.0,0.00019178,2]
[339251439,1727403039438,-500.0,0.00019178,2]
[339251440,1727403039449,-506.72602098,0.00019178,2]
[339251441,1727403039460,-505.53742141,0.00019178,2]
[339251442,1727403039472,-500.0,0.00019178,2]
[339251443,1727403039483,-500.0,0.00019178,2]
[339251444,1727403039495,-500.0,0.00019178,2]
[339251445,1727403039506,-518.61842833,0.00019178,2]
[339251446,1727403039516,-500.0,0.00019178,2]
[339251447,1727403039527,-500.0,0.00019178,2]
[339251448,1727403039538,-500.0,0.00019178,2]
[339251449,1727403039549,-500.0,0.00019178,2]
[339251450,1727403039559,-785.56,0.00019178,2]
[339251451,1727403039569,-424.23185369,0.00019178,2]
[339251452,1727403039578,-504.03148342,0.00019178,2]
[339251453,1727403039588,-526.07261198,0.00019178,2]
[339251454,1727403039599,-500.0,0.00019178,2]
[339251455,1727403039609,-500.0,0.00019178,2]
[339251456,1727403039619,-500.0,0.00019178,2]
[339251457,1727403039629,-503.29245743,0.00019178,2]
[339251458,1727403039639,-500.0,0.00019178,2]
[339251459,1727403039648,-512.31092145,0.00019178,2]
[339251460,1727403039658,-500.0,0.00019178,2]
[339251461,1727403039668,-505.57790031,0.00019178,2]
[339251462,1727403039677,-504.96056214,0.00019178,2]
[339251463,1727403039688,-503.3790779,0.00019178,2]
[339251464,1727403039699,-1000.0,0.00019178,2]
[339251465,1727403039711,-500.0,0.00019178,2]
[339251466,1727403039721,-500.0,0.00019178,2]
[339251467,1727403039731,-512.88799537,0.00019178,2]
[339251468,1727403039741,-500.0,0.00019178,2]
[339251469,1727403039750,-504.87313067,0.00019178,2]
[339251471,1727403039760,-500.0,0.00019178,2]
[339251472,1727403039769,-591.51753647,0.00019178,2]
[339251473,1727403039778,-500.0,0.00019178,2]
[339251474,1727403039788,-527.50529191,0.00019178,2]
[339251475,1727403039797,-501.58246172,0.00019178,2]
[339251476,1727403039807,-500.0,0.00019178,2]
[339251477,1727403039816,-505.35261575,0.00019178,2]
[339251478,1727403039826,-200.87,0.00019178,2]
[339251479,1727403039835,-500.0,0.00019178,2]
[339251480,1727403039844,-501.63113708,0.00019178,2]
[339251481,1727403039854,-504.11027069,0.00019178,2]
[339251482,1727403039865,-500.0,0.00019178,2]
[339251483,1727403039875,-504.16760848,0.00019178,2]
[339251484,1727403039888,-500.0,0.00019178,2]
[339251485,1727403039899,-503.82395502,0.00019178,2]
[339251486,1727403039910,-500.0,0.00019178,2]
[339251488,1727403039920,-500.0,0.00019178,2]
[339251489,1727403039930,-507.60765609,0.00019178,2]
[339251491,1727403039940,-516.14742488,0.00019178,2]
[339251493,1727403039951,-2222.04,0.00019178,2]
[339251495,1727403039962,-502.42366268,0.00019178,2]
[339251496,1727403039973,-500.0,0.00019178,2]
[339251497,1727403039987,-165.55820456,0.00019178,2]
[339251498,1727403039998,-504.73304,0.00019178,2]
[339251499,1727403040009,-510.23012474,0.00019178,2]
[339251500,1727403040021,-500.0,0.00019178,2]
[339251501,1727403040033,-569.22,0.00019178,2]
[339251502,1727403040043,-500.0,0.00019178,2]
[339251503,1727403040056,-500.0,0.00019178,2]
[339251504,1727403040065,-1627.19,0.00019178,2]
[339251505,1727403040076,-166.34343565,0.00019178,2]
[339251506,1727403040087,-501.96895015,0.00019178,2]
[339251508,1727403040098,-500.0,0.00019178,2]
[339251510,1727403040108,-500.0,0.00019178,2]
[339251511,1727403040118,-500.0,0.00019178,2]
[339251512,1727403040131,-514.32724034,0.00019178,2]
[339251513,1727403040142,-503.51736652,0.00019178,2]
[339251514,1727403040153,-554.68958909,0.00019178,2]
[339251515,1727403040163,-500.0,0.00019178,2]
[339251516,1727403040173,-506.87517003,0.00019178,2]
[339251517,1727403040182,-500.0,0.00019178,2]
[339251518,1727403040191,-500.0,0.00019178,2]
[339251519,1727403040201,-500.0,0.00019178,2]
[339251520,1727403040210,-313.98973406,0.00019178,2]
[339251521,1727403040220,-500.0,0.00019178,2]
[339251522,1727403040230,-500.0,0.00019178,2]
[339251523,1727403040240,-500.0,0.00019178,2]
[339251524,1727403040251,-500.0,0.00019178,2]
[339251525,1727403040261,-397.52466371,0.00019178,2]
[339251526,1727403040272,-500.0,0.00019178,2]
[339251527,1727403040283,-177.79641467,0.00019178,2]
[339251528,1727403040301,-503.88295241,0.00019178,2]
[339251529,1727403040310,-500.0,0.00019178,2]
[339251530,1727403040319,-509.11825541,0.00019178,2]
[339251531,1727403040328,-500.0,0.00019178,2]
[339251532,1727403040338,-523.06538209,0.00019178,2]
[339251533,1727403040347,-500.0,0.00019178,2]
[339251534,1727403040357,-502.62246958,0.00019178,2]
[339251535,1727403040366,-500.0,0.00019178,2]
[339251536,1727403040376,-500.0,0.00019178,2]
[339251537,1727403040386,-484.41885902,0.00019178,2]
[339251538,1727403040396,-507.37592985,0.00019178,2]
[339251539,1727403040406,-510.57907973,0.00019178,2]
[339251540,1727403040415,-508.78771254,0.00019178,2]
[339251541,1727403040426,-262.28491804,0.00019178,2]
[339251542,1727403040555,-500.0,0.00019178,2]
[339251543,1727403040565,-500.0,0.00019178,2]
[339251544,1727403040574,-504.71657873,0.00019178,2]
[339251545,1727403040584,-169.9404142,0.00019178,2]
[339251546,1727403040594,-504.3754481,0.00019178,2]
[339251547,1727403040603,-510.19479574,0.00019178,2]
[339251548,1727403040612,-503.00449786,0.00019178,2]
[339251549,1727403040621,-500.0,0.00019178,2]
[339251550,1727403040631,-157.87579031,0.00019178,2]
[339251551,1727403040641,-413.7038129,0.00019178,2]
[339251552,1727403040650,-464.26494316,0.00019178,2]
[339251553,1727403040659,-458.44976795,0.00019178,2]
[339251554,1727403040670,-532.2860356,0.00019178,2]
[339251555,1727403040679,-516.82072127,0.00019178,2]
[339251556,1727403040688,-603.61750877,0.00019178,2]
[339251557,1727403040698,-527.97721592,0.00019178,2]
[339251558,1727403040708,-506.60099789,0.00019178,2]
[339251559,1727403040717,-500.0,0.00019178,2]
[339251560,1727403040728,-500.0,0.00019178,2]
[339251561,1727403040738,-568.52091909,0.00019178,2]
[339251562,1727403040747,-520.55898909,0.00019178,2]
[339251563,1727403040756,-500.0,0.00019178,2]
[339251564,1727403040766,-500.0,0.00019178,2]
[339251565,1727403040776,-610.0,0.00019178,2]
[339251566,1727403040791,-589.14910012,0.00019178,2]
[339251567,1727403040801,-553.05664782,0.00019178,2]
[339251568,1727403040811,-506.97307135,0.00019178,2]
[339251569,1727403040820,-500.0,0.00019178,2]
[339251570,1727403040830,-157.93431139,0.00019178,2]
[339251571,1727403040839,-561.20569069,0.00019178,2]
[339251572,1727403040849,-566.83856903,0.00019178,2]
[339251573,1727403040859,-500.0,0.00019178,2]
[339251574,1727403040869,-526.34264009,0.00019178,2]
[339251575,1727403040879,-513.62200632,0.00019178,2]
[339251576,1727403040889,-598.29239378,0.00019178,2]
[339251577,1727403040899,-500.0,0.00019178,2]
[339251578,1727403040908,-504.39762484,0.00019178,2]
[339251579,1727403040917,-484.81701463,0.00019178,2]
[339251580,1727403040927,-500.0,0.00019178,2]
[339251581,1727403040937,-500.0,0.00019178,2]
[339251582,1727403040947,-500.0,0.00019178,2]
[339251583,1727403040956,-352.01920471,0.00019178,2]
[339251584,1727403040965,-500.0,0.00019178,2]
[339251585,1727403040975,-225.66907128,0.00019178,2]
[339251586,1727403040989,-500.0,0.00019178,2]
[339251587,1727403040998,-526.00384797,0.00019178,2]
[339251588,1727403041008,-256.72957192,0.00019178,2]
[339251589,1727403041017,-500.0,0.00019178,2]
[339251590,1727403041029,-500.0,0.00019178,2]
[339251591,1727403041040,-500.0,0.00019178,2]
[339251592,1727403041049,-600.38907819,0.00019178,2]
[339251593,1727403041060,-500.0,0.00019178,2]
[339251594,1727403041070,-500.0,0.00019178,2]
[339251595,1727403041079,-500.0,0.00019178,2]
[339251596,1727403041089,-506.86488071,0.00019178,2]
[339251597,1727403041098,-556.27,0.00019178,2]
[339251598,1727403041108,-18298.37,0.00019178,2]
[339251599,1727403041117,-496.31801106,0.00019178,2]
[339251600,1727403041127,-500.0,0.00019178,2]
[339251601,1727403041137,-500.0,0.00019178,2]
[339251602,1727403041147,-500.0,0.00019178,2]
[339251603,1727403041157,-505.33591757,0.00019178,2]
[339251604,1727403041166,-3992.37,0.00019178,2]
[339251605,1727403041175,-500.0,0.00019178,2]
[339251606,1727403041185,-177.86813188,0.00019178,2]
[339251607,1727403041194,-500.0,0.00019178,2]
[339251608,1727403041203,-500.0,0.00019178,2]
[339251609,1727403041213,-508.70404606,0.00019178,2]
[339251610,1727403041222,-500.0,0.00019178,2]
[339251611,1727403041231,-500.0,0.00019178,2]
[339251612,1727403041240,-543.31043458,0.00019178,2]
[339251613,1727403041249,-500.0,0.00019178,2]
[339251614,1727403041259,-532.7567702,0.00019178,2]
[339251615,1727403041269,-164.861053,0.00019178,2]
[339251616,1727403041278,-194.798951,0.00019178,2]
[339251617,1727403041288,-163.605249,0.00019267,2]
[339251618,1727403041298,-159.09586361,0.00019335,2]
[339251619,1727403041307,-27056.0357923,0.00019422,3]
[339251620,1727403041317,-44818.7279584,0.00019422,3]
[339251621,1727403041326,-27056.0357923,0.00019442,3]
[339251622,1727403041335,-44818.7279584,0.00019442,3]
[339251623,1727403041345,-500.0,0.00019452,2]
[339251624,1727403041355,-619.29626484,0.00019452,2]
[339251625,1727403041365,-504.82000243,0.00019452,2]
[339251626,1727403041374,-618.54,0.00019452,2]
[339251627,1727403041384,-500.0,0.00019452,2]
[339251628,1727403041393,-1127.56,0.00019452,2]
[339251629,1727403041403,-500.0,0.00019452,2]
[339251630,1727403041412,-500.0,0.00019452,2]
[339251631,1727403041422,-1317.33,0.00019452,2]
[339251632,1727403041431,-605.87,0.00019452,2]
[339251633,1727403041440,-500.0,0.00019452,2]
[339251634,1727403041450,-500.0,0.00019452,2]
[339251635,1727403041460,-1146.39,0.00019452,2]
[339251636,1727403041469,-517.01180581,0.00019452,2]
[339251637,1727403041478,-501.94748668,0.00019452,2]
[339251638,1727403041487,-500.5314839,0.00019452,2]
[339251639,1727403041496,-500.0,0.00019452,2]
[339251640,1727403041505,-487.62435854,0.00019452,2]
[339251641,1727403041516,-785.56,0.00019452,2]
[339251642,1727403041525,-500.0,0.00019452,2]
[339251643,1727403041535,-500.0,0.00019452,2]
[339251644,1727403041544,-1000.0,0.00019452,2]
[339251645,1727403041553,-154.1035987,0.00019452,2]
[339251646,1727403041563,-500.0,0.00019452,2]
[339251647,1727403041571,-500.0,0.00019452,2]
[339251648,1727403041580,-389.85236087,0.00019452,2]
[339251649,1727403041589,-233.67500522,0.00019452,2]
[339251650,1727403041598,-510.71150296,0.00019452,2]
[339251651,1727403041608,-200.87,0.00019452,2]
[339251652,1727403041618,-500.0,0.00019452,2]
[339251653,1727403041627,-500.0,0.00019452,2]
[339251654,1727403041636,-500.0,0.00019452,2]
[339251655,1727403041645,-2222.04,0.00019452,2]
[339251656,1727403041654,-170.24623355,0.00019452,2]
[339251657,1727403041663,-500.0,0.00019452,2]
[339251658,1727403041673,-569.22,0.00019452,2]
[339251659,1727403041682,-342.5325947,0.00019452,2]
[339251660,1727403041691,-1627.19,0.00019452,2]
[339251661,1727403041699,-578.7498231,0.00019452,2]
[339251662,1727403041708,-177.15040229,0.00019452,2]
[339251663,1727403041719,-500.0,0.00019452,2]
[339251664,1727403041728,-500.0,0.00019452,2]
[339251665,1727403041737,-507.9593945,0.00019452,2]
[339251666,1727403041747,-500.0,0.00019452,2]
[339251667,1727403041756,-529.213578,0.00019452,2]
[339251668,1727403041765,-500.0,0.00019452,2]
[339251669,1727403041774,-626.93950403,0.00019452,2]
[339251670,1727403041784,-500.0,0.00019452,2]
[339251671,1727403041796,-172.52427923,0.00019452,2]
[339251672,1727403041807,-198.40069538,0.00019452,2]
[339251673,1727403041816,-511.24234283,0.00019452,2]
[339251674,1727403041825,-513.11714691,0.00019452,2]
[339251675,1727403041834,-500.0,0.00019452,2]
[339251676,1727403041843,-210.74709163,0.00019452,2]